Cogmind - Beta 10.2 @@@ ROGUE MODE // 2021.05.10 @ 19:00:58 Player: Ruben Result: Destroyed by H-55 Commando with Gauss Rifle Performance ------------- Evolutions (2) 1000 Regions Visited (5) 1000 Robots Destroyed (10) 50 Value Destroyed (264) 264 Prototype IDs (1) 20 Alien Tech Used (0) 0 Bonus (0) 0 TOTAL SCORE: 2334 Bonus ------- None Cogmind --------- Core Integrity 0/550 Matter 300/300 Energy 100/100 System Corruption 1% Temperature Cool (0) Movement Core (100) Ox1 Location -8/Storage Parts ------- > --- POWER (2) -------- (None) > --- PROPULSION (4) --- (None) > --- UTILITY (3) ------ Small Storage Unit > --- WEAPON (2) ------- (None) > --- INVENTORY (6) ---- (None) Peak State ------------ > --- POWER ------------ Ion Engine Light Ion Engine > --- PROPULSION ------- Flight Unit Flight Unit Flight Unit Flight Unit > --- UTILITY ---------- Small Storage Unit Maneuvering Thrusters > --- WEAPON ----------- Small Laser Improved Medium Laser > --- INVENTORY -------- Light Ion Engine Flight Unit Maneuvering Thrusters Beam Rifle Improved Medium Laser [Rating: 15] Favorites ----------- Power Light Ion Engine Engine Light Ion Engine Propulsion Flight Unit Leg Aluminum Leg Flight Unit Flight Unit Utility Small Storage Unit Device Maneuvering Thrusters Storage Small Storage Unit Weapon Light Assault Rifle Energy Gun Small Laser Energy Cannon EM Pulse Cannon Ballistic Gun Light Assault Rifle Build | -11 -10 -10 -9 -8 -8 ------- Run | Scr Mat Min Mat Mat Sto Slots Evolved 4 | . . . 2 2 . Power 1 | . . . . 1 . Propulsion 2 | . . . 2 . . Utility 1 | . . . . 1 . Weapon . | . . . . . . Parts Attached 45 | 7 4 . 13 13 8 Power 10 | 1 . . 1 6 2 Engine 10 | 1 . . 1 6 2 Core . | . . . . . . Reactor . | . . . . . . Propulsion 13 | 2 2 . 4 3 2 Treads . | . . . . . . Leg 4 | 2 . . . . 2 Wheel . | . . . . . . Hover . | . . . . . . Flight 9 | . 2 . 4 3 . Utility 5 | 1 . . 1 2 1 Device 3 | . . . 1 2 . Storage 2 | 1 . . . . 1 Processor . | . . . . . . Hackware . | . . . . . . Protection . | . . . . . . Artifact . | . . . . . . Weapon 17 | 3 2 . 7 2 3 Energy Gun 9 | . 1 . 4 2 2 Energy Cannon 1 | . . . . . 1 Ballistic Gun 7 | 3 1 . 3 . . Ballistic Cannon . | . . . . . . Launcher . | . . . . . . Special Weapon . | . . . . . . Impact Weapon . | . . . . . . Slashing Weapon . | . . . . . . Piercing Weapon . | . . . . . . Special Melee Weapon . | . . . . . . Unidentified Prototypes 1 | . . . 1 . . Parts Lost 20 | . . . 1 11 8 Power 3 | . . . . 1 2 Propulsion 9 | . . . . 6 3 Utility 2 | . . . . 2 . Weapon 6 | . . . 1 2 3 Highest Loss Streak 8 | . . . 1 7 8 Average Slot Usage (%) 60 | . 79 . 85 52 18 Engine 10 | . 14 . 11 10 7 Leg 3 | . 16 . . . 3 Flight 24 | . 12 . 42 25 2 Device 4 | . . . 8 4 . Storage 6 | . 14 . 11 2 . Energy Gun 6 | . 2 . 8 9 1 Ballistic Gun 3 | . 20 . 2 . . Naked Turns 4 | . . . . . 4 Heaviest Build 16 | 10 10 8 14 16 15 Greatest Support 25 | 20 20 8 16 16 25 Greatest Overweight (x) 4 | 1 . . 1 2 4 Average Overweight (x) . | . . . . . . Largest Inventory Capacity 6 | 6 6 6 6 6 6 Average Capacity 5 | 5 6 6 6 4 4 Most Carried 6 | 6 6 6 6 6 4 Average Carried 3 | 3 3 6 5 3 2 Final Capacity 6 | 6 6 6 6 4 6 Final Carried 6 | 2 6 6 6 4 . Class Distribution -------------------- 76% | Mutant 23% | Sprinter Dominant Class ---------------- Mutant | -10/Materials Mutant | -10/Mines Sprinter | -9/Materials Mutant | -8/Materials Mutant | -8/Storage Resources | -11 -10 -10 -9 -8 -8 ----------- Run | Scr Mat Min Mat Mat Sto Matter Collected 601 | 215 38 . 82 186 80 Remotely . | . . . . . . Salvage Created 422 | . 38 . 82 201 101 Parts 27 | . 4 . 8 13 2 Haulers Intercepted . | . . . . . . Recyclers Shooed 1 | . . . . 1 . Parts Field Recycled . | . . . . . . Retrieved Matter . | . . . . . . Parts Self-Destructed . | . . . . . . Prevented . | . . . . . . Kills | -11 -10 -10 -9 -8 -8 ------- Run | Scr Mat Min Mat Mat Sto Combat Hostiles Destroyed 7 | . 1 . 1 3 2 Guns 5 | . 1 . 1 3 . Cannons 1 | . . . . . 1 Classes Destroyed 6 | . 1 . 2 3 . Worker 1 | . . . . 1 . Recycler 1 | . . . . 1 . Watcher 1 | . . . 1 . . Swarmer 2 | . . . . 2 . Grunt 3 | . 1 . . . 2 Sentry 2 | . . . 1 1 . Best Kill Streak 5 | . 1 . 2 5 2 Combat Bots Only 2 | . 1 . 1 2 2 Max Kills in Single Turn 1 | . 1 . 1 1 1 Gunslinging . | . . . . . . Exploded . | . . . . . . Melee . | . . . . . . Uniques/NPCs Destroyed . | . . . . . . Combat | -11 -10 -10 -9 -8 -8 -------- Run | Scr Mat Min Mat Mat Sto Damage Taken 1485 | . 47 8 70 561 799 Core 588 | . 24 . . 192 372 Absorbed by Shields . | . . . . . . Core Remaining (%) 96 | 100 . 90 100 . . Volleys Fired 43 | . 4 . 7 21 11 Largest 2 | . 2 . 2 2 2 Hottest 119 | . 40 . 96 112 119 Shots Fired 64 | . 8 . 13 29 14 Gun 56 | . 8 . 13 29 6 Cannon 8 | . . . . . 8 Launcher . | . . . . . . Special . | . . . . . . Kinetic 12 | . 8 . 4 . . Thermal 44 | . . . 9 29 6 Explosive . | . . . . . . Electromagnetic 8 | . . . . . 8 Robot Hit Streak 12 | . 5 . 12 5 4 Robot Miss Streak 5 | . 1 . 2 5 1 Penetration Max . | . . . . . . Secondary Targets 1 | . . . . 1 . Max Gunslinging Chain 1 | . . . . 1 . Shots Hit Robots 41 | . 7 . 8 16 10 Core Hits 16 | . 3 . 4 6 3 Critical Hits . | . . . . . . Critical Kills . | . . . . . . Critical Parts Destroyed . | . . . . . . Melee Attacks . | . . . . . . Impact . | . . . . . . Slashing . | . . . . . . Piercing . | . . . . . . Sneak Attacks . | . . . . . . Combat Hostiles . | . . . . . . Follow-up Attacks . | . . . . . . Damage Inflicted 705 | . 64 . 99 320 222 Guns 552 | . 64 . 99 320 69 Cannons 151 | . . . . . 151 Explosions . | . . . . . . Melee . | . . . . . . Ramming 2 | . . . . . 2 Kinetic 78 | . 64 . 14 . . Thermal 474 | . . . 85 320 69 Explosive . | . . . . . . Electromagnetic 151 | . . . . . 151 Impact . | . . . . . . Slashing . | . . . . . . Piercing . | . . . . . . Highest Corruption 1 | . . . . . 1 Average Corruption 1 | . . . . . 1 Corruption Purged . | . . . . . . Overload Shots . | . . . . . . Overflow Damage . | . . . . . . Projectiles . | . . . . . . Explosions . | . . . . . . Melee . | . . . . . . Knockbacks . | . . . . . . Impact . | . . . . . . Kinetic . | . . . . . . Secondary . | . . . . . . Self-Inflicted Damage . | . . . . . . Shots . | . . . . . . Rammed . | . . . . . . Targets Rammed 2 | . . . . . 2 Kicked 2 | . . . . . 2 Crushed . | . . . . . . Highest Temperature 373 | . 8 . 52 373 186 Average Temperature 142 | . 5 . 19 209 103 Received Heat Transfer 243 | . 27 . . 54 162 Effects 3 | . . . . 3 . Energy Bleed 3 | . . . . 3 . Siege Activations . | . . . . . . Robots Corrupted 1 | . . . . . 1 Combat Hostiles 1 | . . . . . 1 Parts Fried . | . . . . . . Impact Corruptions . | . . . . . . Robots Melted . | . . . . . . Combat Hostiles . | . . . . . . Parts Melted 2 | . . . . 2 . Heat Transferred 1050 | . . . 199 703 148 Parts Sabotaged . | . . . . . . Parts Stolen . | . . . . . . Parts Stripped . | . . . . . . Power Chain Reactions . | . . . . . . Missiles Intercepted . | . . . . . . Alert | -11 -10 -10 -9 -8 -8 ------- Run | Scr Mat Min Mat Mat Sto Peak Influence 196 | . 65 25 196 132 141 Initial 82 | . . 25 9 82 46 Average 70 | . 24 25 73 93 105 Maximum Alert Level . | . . . . . . Low Security (%) 100 | 100 100 100 100 100 100 Level 1 . | . . . . . . Level 2 . | . . . . . . Level 3 . | . . . . . . Level 4 . | . . . . . . Level 5 . | . . . . . . High Security . | . . . . . . Max Security . | . . . . . . Squads Dispatched 4 | . 3 . . . 1 Investigation . | . . . . . . Extermination . | . . . . . . Reinforcement 3 | . 3 . . . . Assault . | . . . . . . Garrison 1 | . . . . . 1 Intercept . | . . . . . . Construction Impeded . | . . . . . . Haulers Reinforced . | . . . . . . Stealth | -11 -10 -10 -9 -8 -8 --------- Run | Scr Mat Min Mat Mat Sto Distress Signals 1 | . . . 1 . . Communications Jammed . | . . . . . . Distress Signals . | . . . . . . Times Spotted 38 | . 8 5 9 9 7 Peak Tracking Total 8 | . 5 5 6 4 8 Tactical Retreats 3 | . . . 1 1 1 Traps | -11 -10 -10 -9 -8 -8 ------- Run | Scr Mat Min Mat Mat Sto Traps Triggered 4 | . . . . 3 1 Indirectly . | . . . . . . Trap Hack Attempts . | . . . . . . Triggered . | . . . . . . Disarmed . | . . . . . . Reprogrammed . | . . . . . . Reused . | . . . . . . Traps Extracted . | . . . . . . Installed . | . . . . . . Triggered . | . . . . . . Machines | -11 -10 -10 -9 -8 -8 ---------- Run | Scr Mat Min Mat Mat Sto Machines Disabled . | . . . . . . Max in Single Turn . | . . . . . . Machines Sabotaged . | . . . . . . Garrisons Compromised . | . . . . . . Overloaded Fab Kills . | . . . . . . Fab Network Shutdowns . | . . . . . . Hacking | -11 -10 -10 -9 -8 -8 --------- Run | Scr Mat Min Mat Mat Sto Machines Accessed 7 | . . . 4 2 1 Terminals 5 | . . . 3 2 . Fabricators . | . . . . . . Repair Stations 1 | . . . . . 1 Recycling Units . | . . . . . . Scanalyzers 1 | . . . 1 . . Garrison Access . | . . . . . . Total Hacks 24 | . . . 17 5 2 Successful 20 | . . . 14 5 1 Failed 4 | . . . 3 . 1 Catastrophic . | . . . . . . Database Lockouts . | . . . . . . Manual . | . . . . . . Terminals 18 | . . . 13 5 . Fabricators . | . . . . . . Repair Stations 2 | . . . . . 2 Recycling Units . | . . . . . . Scanalyzers 4 | . . . 4 . . Garrison Access . | . . . . . . Terminal Hacks 16 | . . . 11 5 . Record 11 | . . . 8 3 . Alert Level 1 | . . . 1 . . Locate Traps 3 | . . . 2 1 . Zone Layout 1 | . . . . 1 . Fabricator Hacks . | . . . . . . Repair Station Hacks 1 | . . . . . 1 Scan Component 1 | . . . . . 1 Recycling Unit Hacks . | . . . . . . Scanalyzer 3 | . . . 3 . . Insert Component 2 | . . . 2 . . Analyze 1 | . . . 1 . . Garrison Access Hacks . | . . . . . . Unauthorized Hacks . | . . . . . . Terminals . | . . . . . . Fabricators . | . . . . . . Repair Stations . | . . . . . . Recycling Units . | . . . . . . Scanalyzers . | . . . . . . Garrison Access . | . . . . . . Data Cores Recovered . | . . . . . . Used . | . . . . . . Hacking Detections 5 | . . . 2 2 1 Full Trace Events . | . . . . . . Feedback Events . | . . . . . . Feedback Blocked . | . . . . . . Robot Schematics Acquired . | . . . . . . Robots Built . | . . . . . . Matter . | . . . . . . Time . | . . . . . . Total Robot Build Rating . | . . . . . . Part Schematics Acquired 1 | . . . 1 . . Parts Built . | . . . . . . Matter . | . . . . . . Time . | . . . . . . Total Part Build Rating . | . . . . . . Parts Repaired . | . . . . . . Time . | . . . . . . Parts Recycled . | . . . . . . Recycled Matter . | . . . . . . Retrieved Matter . | . . . . . . Retrieved Components . | . . . . . . Parts Scanalyzed 1 | . . . 1 . . Part Schematics Acquired 1 | . . . 1 . . Parts Damaged . | . . . . . . Bothacking | -11 -10 -10 -9 -8 -8 ------------ Run | Scr Mat Min Mat Mat Sto Used RIF Installer . | . . . . . . Robots Hacked . | . . . . . . Non-combat . | . . . . . . Combat . | . . . . . . Robot Hacks Applied . | . . . . . . Relay Couplers Released . | . . . . . . Robots Rewired . | . . . . . . Allies Hacked . | . . . . . . Hacks Repelled . | . . . . . . Allies | -11 -10 -10 -9 -8 -8 -------- Run | Scr Mat Min Mat Mat Sto Total Allies . | . . . . . . Largest Group . | . . . . . . Highest-Rated Group . | . . . . . . Highest-Rated Ally . | . . . . . . Total Orders . | . . . . . . Ally Attacks . | . . . . . . Total Damage . | . . . . . . Kills . | . . . . . . Allies Corrupted . | . . . . . . Allies Melted . | . . . . . . Intel | -11 -10 -10 -9 -8 -8 ------- Run | Scr Mat Min Mat Mat Sto Robot Analysis Total . | . . . . . . Derelict Logs Recovered . | . . . . . . Drone Launches . | . . . . . . Drone Recoveries . | . . . . . . Exploration | -11 -10 -10 -9 -8 -8 ------------- Run | Scr Mat Min Mat Mat Sto Turns Passed 538 | 55 69 3 160 148 103 Spaces Moved 596 | 46 64 7 182 193 104 Core 63 | 35 . . . . 28 Treads . | . . . . . . Legs 47 | 11 23 . . . 13 Wheels . | . . . . . . Hover . | . . . . . . Flight 486 | . 41 7 182 193 63 Fastest Speed 31 | 50 37 37 31 31 40 Average Speed 47 | 89 66 37 34 36 61 Slowest Speed 250 | 120 120 37 114 200 250 Overloaded Moves . | . . . . . . Propulsion Burnouts . | . . . . . . Robots Hopped 5 | . . 2 2 . 1 Cave-ins Triggered . | . . . . . . Exploration Rate (%) 19 | 5 18 6 33 26 28 Regions Visited 5 Branch Regions 2 Pre-discovered Areas . | . . . . . . Known Exits Taken . | . . . . . . Unknown Exits Taken 5 | 1 1 1 1 1 . Scrap Searched . | . . . . . . Spaces Dug . | . . . . . . Terrain Destroyed . | . . . . . . Melee . | . . . . . . Projectile . | . . . . . . AOE . | . . . . . . Terrain Rammed . | . . . . . . Walls Destroyed . | . . . . . . Machines Disabled . | . . . . . . Actions | -11 -10 -10 -9 -8 -8 --------- Run | Scr Mat Min Mat Mat Sto Total 782 | 58 83 4 264 247 126 Wait 56 | . . . 53 3 . Move 582 | 45 63 3 177 192 102 Hop 4 | . . 1 2 . 1 Pick Up 26 | 6 7 . 4 7 2 Fast Attach 8 | 2 . . 3 2 1 Attach 28 | 4 1 . 7 10 6 Detach 10 | . 1 . 5 4 . Swap 10 | 1 3 . 4 1 1 Drop 13 | . 4 . 2 7 . Fire 43 | . 4 . 7 21 11 Melee . | . . . . . . Ram . | . . . . . . Kick 2 | . . . . . 2 Crush . | . . . . . . Escape Stasis . | . . . . . . Rewire . | . . . . . . Trap . | . . . . . . Miscellaneous . | . . . . . . Route ------- -11/Scrapyard -10/Materials -10/Mines -9/Materials -8/Materials -8/Storage History --------- Turn | Location | Event 4 | -11/Scrapyard | Discovered new exit (range 15) 56 | -11/Scrapyard | Entered Materials 117 | -10/Materials | Discovered new exit (range 16) 125 | -10/Materials | Entered Mines 126 | -10/Mines | Discovered new exit (range 5) 128 | -10/Mines | Entered Materials 128 | -9/Materials | Evolved 2 slots: Propulsion x2 277 | -9/Materials | Discovered new exit (range 16) 288 | -9/Materials | Entered another Materials area 288 | -8/Materials | Evolved 2 slots: Power x1, Utility x1 350 | -8/Materials | Lost 4 parts (3n1w) 429 | -8/Materials | Discovered new exit (range 13) 436 | -8/Materials | Entered Storage 463 | -8/Storage | Lost 7 parts (1p3n2u1w) 502 | -8/Storage | Core integrity fell below 50% 503 | -8/Storage | Garrison activated, responded to threat 527 | -8/Storage | Core integrity fell below 20% 539 | -8/Storage | Destroyed by H-55 Commando with Gauss Rifle Last Messages --------------- Penetrated by Slug. R-06 Scavenger collects Beam Rifle. Imp. Medium Laser destroyed. Deuterium Engine destroyed. Y-45 Defender destroyed. Triggered Shock Trap. The floor emits a surge of raw power. System corrupted (+1). Acquired Aluminum Leg. Penetrated by Slug. Acquired Carbon-fiber Leg. R-06 Scavenger collects Heat Sink. Acquired 20 matter. Slug penetrates Wall. Kicked Y-45 Defender out of the way. Slug penetrates Wall. Kicked Y-45 Defender out of the way. Aluminum Leg destroyed. Penetrated by Slug. Carbon-fiber Leg destroyed. Map ----- +----------------------------------------------------+ | ????????????????????????######### # | | ????????????????????????"""" # # | | ??????????????????????? """" + # | | ??????????????????????? """" # ########## # | | ??????????????????????? """" = + #????????# # | | ??????????????????????# # #????????# # | | ??????????????????????# # #????????# # | | ??????????????????????# # #????????# # | | ??????????????????????# # #????????# # | | ??????????????????????####### ### ##???????# # | | ?????????????????????########### #???????# # | | ??????????????????? #???????# # | | ??????????????????? #???????? # | | ??????????????????? #???????? # | | ????????????????################ #???????? # | | ????????????????# ! ##????## ##???????? ? | | ????????????????# """ #?????# #????????????? | | ????????????????# """ #??????# #????????????? | | ????????????????# """ #??????# #????????????? | | ????????????????# #??????# #????????????? | | ????????????????# """ """#??????# #????????????? | | ????????????????# " R"#??????# #????????????? | | ????????????????# " " "#??????# #????????????? | | ????????????????# % #??????# #?##?????????? | | ???????????????######Y########### ##T#?????????? | | ???????????????# % u@u u # " #????? | | ???????????????# h % + ]]#????? | | ???????????????# r # " ]]#????? | | ???????????????############# ## #?????????? | | ???????????????????????????# #??##?????????? | | ???????????????????????????# #?????????????? | | ???????????????????????????# ##### #?????????????? | | ???????????????????????????# #???# #?????????????? | | ???????????????????????????# #???# #?????????????? | | ???????????????????????????# #???# #?????????????? | | ???????????????????????????# #???# #?????????????? | | ???????????????????????????# #???# #?????????????? | | ???????????????????????????#/#????+#?????????????? | | ???????????????????????????# ??????????????????? | | ???????????????????????????# ! ????????????????? | | ???????????????????????????# ""??????????????? | | ???????????????????????????# """ ????????????? | | ???????????????????????????# "" ????????????? | | ???????????????????????????# "G ????????????? | | ???????????????????????????# "" #???????????? | | ???????????????????????????/ #???????????? | | ???????????????????????????#### ######???????????? | | ???????????????????????????????#?????????????????? | | ?????????????????????????????????????????????????? | | ?????????????????????????????????????????????????? | +----------------------------------------------------+ Best States ------------- Heat Dissipation 31 Energy Generation 15 Energy Capacity 275 Matter Stores 300 Matter Capacity 300 Sight Range 16 Terrain Scan Density 10 Evasion (%) 69 Item Schematics ----------------- Flight Unit | -9/Materials | Scanalyzed Robot Schematics ------------------ None Fabricated ------------ Nothing Alien Tech Used ----------------- None Achievements -------------- None Challenges ------------ None Game ------ Seed ReinforcedElectronLauncher Manual? 0 Play Time 00:24:10 Cumulative 22.3 hours Start 2021.05.10 @ 18:39:40 End 2021.05.10 @ 19:00:58 Sessions 1 Manual Loads 0 Difficulty Rogue Special Mode None Game No. 38 Rogue 37 Adventurer 0 Explorer 1 Win Type - Total 0 Types 0/0/0/0/0/0/0/0/0 Lore% 14 Gallery% 29 Achievement% 19 Wizard Run 0 Options --------- ASCII 0 Keyboard 0 Movement Mouse Keybinds 0 Fullscreen 1 Font 18/SmallcapsGlow Map View 76x50 Tactical HUD 0 Map Filters NONE Filters NONE Steam 1 RUN: f08bb04e-5b12-4b91-a797-3294f30e7b8f